bitfinex-derivatives/quotes_ETHF0:USTF0_20251226
["timestamp","ask_amount","ask_price","bid_price","bid_amount"]
[1766724415011,0.00504303,2972.1,2970.9,1.46771332]
[1766724415813,0.00504303,2972.1,2970.9,1.47104606]
[1766724418010,0.00504303,2972.1,2970.9,0.00333274]
[1766724418806,0.00504303,2972.1,2970.9,3.274e-05]
[1766724419216,40.8,2972.0,2970.9,3.274e-05]
[1766724419904,0.17342303,2972.1,2970.9,3.274e-05]
[1766724420112,0.00504303,2972.1,2970.9,3.274e-05]
[1766724422419,0.00504303,2972.1,2971.0,1.30822242]
[1766724426723,0.00504303,2972.1,2971.0,0.16844]
[1766724434234,0.00504303,2972.1,2970.9,3.274e-05]
[1766724437038,40.8,2972.0,2970.9,3.274e-05]
[1766724437729,0.00504303,2972.1,2970.9,3.274e-05]
[1766724438134,40.80504303,2972.1,2970.9,3.274e-05]
[1766724438335,0.93727544,2972.0,2970.9,3.274e-05]
[1766724438530,0.93733686,2971.9,2970.1,0.16849]
[1766724438720,40.80504303,2972.1,2970.1,0.16849]
[1766724438926,0.93734759,2972.0,2970.1,0.16849]
[1766724439234,0.93734759,2971.9,2970.1,0.16849]
[1766724439428,0.16839,2971.9,2969.7,2.365]
[1766724439624,1.10572673,2971.8,2969.7,2.36831447]
[1766724439826,0.93733533,2971.7,2969.7,2.36831447]
[1766724440028,0.1684,2971.8,2969.7,2.36831447]
[1766724441434,0.1684,2971.8,2969.9,0.1685]
[1766724446854,0.1684,2971.7,2969.9,0.1685]
[1766724450041,0.1684,2971.7,2969.9,0.96041318]
[1766724452444,0.16841,2971.6,2969.9,0.1685]
[1766724452632,0.17084163,2971.6,2969.9,0.1685]
[1766724455344,0.17084163,2971.6,2969.7,0.00331447]
[1766724455345,0.16841,2971.5,2969.7,0.00331447]
[1766724455847,0.16842,2971.4,2969.7,0.00331447]
[1766724457643,0.16842,2971.3,2969.7,0.00331447]
[1766724457846,0.16843,2971.2,2969.7,0.00331447]
[1766724458349,0.00243163,2971.6,2969.7,0.00331447]
[1766724458550,0.16845,2970.9,2969.7,0.00331447]
[1766724458858,0.00504303,2970.6,2969.7,0.00331447]
[1766724462260,0.17350303,2970.6,2968.8,0.16856]
[1766724462957,0.16848,2970.3,2968.3,0.16859]
[1766724463261,0.16848,2970.3,2968.3,0.17117422]
[1766724465362,0.00504303,2970.6,2968.7,0.16857]
[1766724465766,0.00504303,2970.6,2968.8,0.16856]
[1766724472167,0.00504303,2970.6,2969.1,0.16854]
[1766724476066,0.00504303,2970.6,2969.2,0.79228051]
[1766724478272,8.029,2970.5,2969.2,0.79228051]
[1766724480473,40.8,2970.4,2969.2,0.79228051]
[1766724481474,40.8,2970.4,2968.8,0.96084051]
[1766724484476,40.96847,2970.4,2968.8,0.96084051]
[1766724485672,0.16841,2971.5,2970.0,0.79228051]
[1766724485878,0.16841,2971.5,2969.2,0.96082051]
[1766724485879,9.02317511,2971.2,2969.6,0.79228051]
[1766724486170,8.081,2971.2,2969.2,0.96082051]
[1766724486367,0.16844,2971.1,2969.2,0.96082051]
[1766724486767,0.0050517,2970.4,2969.9,0.0050517]
[1766724489670,0.0050517,2970.4,2969.6,0.79219542]
[1766724490382,0.0050517,2970.4,2969.2,0.79219542]
[1766724490977,0.0050517,2970.4,2969.5,0.79219542]
[1766724491275,0.0050517,2970.4,2969.2,0.79219542]
[1766724491481,8.082,2970.3,2969.5,0.79219542]
[1766724491685,8.082,2970.3,2969.2,0.79219542]
[1766724491882,8.082,2970.3,2969.4,0.79219542]
[1766724494083,8.103,2970.3,2969.4,0.79219542]
[1766724495490,8.103,2970.3,2969.1,0.79219542]
[1766724496190,8.103,2970.3,2968.6,0.16857]
[1766724496387,8.103,2970.3,2969.1,0.79219542]
[1766724496889,8.103,2970.3,2969.2,0.79219542]
[1766724497889,8.13,2970.2,2969.2,0.79219542]
[1766724500792,0.0050517,2970.4,2969.2,0.79219542]
[1766724500989,8.154,2970.3,2969.2,0.79219542]
[1766724502489,8.164,2970.3,2969.2,0.79219542]
[1766724503093,8.164,2970.3,2969.3,0.79219542]
[1766724503487,1.0,2970.2,2969.3,0.79219542]
[1766724509100,9.212,2970.2,2969.3,0.79219542]
[1766724512401,9.212,2970.2,2968.7,0.16857]
[1766724512694,9.212,2970.2,2969.1,0.79219542]
[1766724513802,9.212,2970.2,2968.7,0.16857]
[1766724514004,9.212,2970.2,2969.1,0.79219542]
[1766724515905,1.0,2970.2,2969.1,0.79219542]
[1766724516205,8.263,2970.1,2969.1,0.79219542]
[1766724524920,8.263,2970.1,2968.7,0.16857]
[1766724525111,8.263,2970.1,2969.1,0.79219542]
[1766724525319,8.263,2970.1,2968.5,4.564]
[1766724525320,0.79219542,2970.0,2968.3,0.00258422]
[1766724525500,8.43149,2970.1,2968.8,0.79219542]
[1766724527911,0.96069542,2969.9,2968.3,0.00258422]
[1766724528105,0.96069542,2969.9,2968.5,0.79219542]
[1766724529415,0.1685,2969.9,2968.5,0.79219542]
[1766724531125,0.16851,2969.8,2968.5,0.79219542]
[1766724532415,0.16851,2969.8,2968.8,0.79219542]
[1766724536330,40.96851,2969.8,2968.8,0.79219542]
[1766724536727,0.16851,2969.8,2968.8,0.79219542]
[1766724537133,40.96851,2969.8,2968.8,0.79219542]
[1766724538327,40.96851,2969.8,2968.3,0.00258422]
[1766724538527,8.258,2969.7,2968.6,0.79219542]
[1766724540724,8.258,2969.7,2968.5,0.79219542]
[1766724542436,1.0,2970.2,2969.1,0.79219542]
[1766724542635,1.0,2970.2,2969.7,0.79219542]
[1766724542838,1.0,2970.2,2969.1,0.79219542]
[1766724543039,1.0,2970.2,2968.6,0.16857]
[1766724543337,1.0,2970.2,2969.1,0.79219542]
[1766724543543,1.0,2970.2,2968.6,0.16857]
[1766724543833,1.0,2970.2,2969.1,0.79219542]
[1766724544236,1.0,2970.2,2969.0,0.79219542]
[1766724544639,1.16849,2970.2,2969.0,0.79219542]
[1766724548345,1.0,2970.1,2969.0,0.79219542]
[1766724549944,1.0,2970.1,2968.5,0.79263894]
[1766724553945,1.0,2970.1,2968.9,0.79263894]
[1766724555946,1.0,2970.1,2968.7,0.79263894]
[1766724563756,0.0050517,2970.4,2969.1,0.79263894]
[1766724564056,8.42042,2971.4,2969.7,0.79263894]
[1766724564248,0.92720827,2971.3,2969.7,0.79263894]
[1766724564450,8.42042,2971.4,2969.7,0.79263894]
[1766724564744,0.92650993,2971.3,2969.7,0.79263894]
[1766724564950,0.0050517,2970.8,2969.7,0.79263894]
[1766724569151,0.0050517,2970.8,2969.5,0.0050517]
[1766724569754,0.16847,2970.6,2969.5,0.0050517]
[1766724570258,40.96847,2970.6,2969.5,0.0050517]
[1766724575866,8.279,2970.5,2969.5,0.0050517]
[1766724577066,0.0050517,2970.8,2969.5,0.0050517]
[1766724578462,8.2920517,2970.8,2969.5,0.0050517]
[1766724580566,0.0050517,2970.8,2969.5,0.0050517]
[1766724585479,0.16846,2970.7,2969.5,0.0050517]
[1766724598180,0.16846,2970.6,2969.5,0.0050517]
[1766724598377,0.16846,2970.6,2968.8,0.79263894]
[1766724598679,0.16846,2970.6,2969.2,0.79263894]
[1766724605386,0.0050517,2970.8,2969.2,0.79263894]
[1766724605584,0.00243163,2971.6,2970.7,0.79263894]
[1766724605780,0.00243163,2971.6,2970.7,0.00333523]
[1766724606478,0.0050517,2971.4,2970.9,0.0050517]
[1766724606888,0.0050517,2971.4,2970.7,0.00333523]
[1766724610088,0.0050517,2971.4,2970.7,0.79505509]
[1766724611990,0.0050517,2971.4,2971.0,0.79171986]
[1766724612193,0.00243163,2971.6,2971.0,0.79171986]
[1766724613194,0.00748333,2971.6,2971.0,0.79677156]
[1766724619295,8.263,2971.8,2971.0,0.0050517]
[1766724620293,0.0050517,2971.7,2971.0,0.0050517]
[1766724621198,8.279,2971.6,2971.0,0.0050517]
[1766724622691,8.279,2971.6,2970.7,0.00333523]
[1766724623095,0.79171986,2971.0,2969.1,0.16854]
[1766724623294,0.16842,2971.3,2969.9,0.79171986]
[1766724623295,8.291,2970.9,2969.9,0.79171986]
[1766724623693,8.291,2970.9,2970.1,0.0050517]
[1766724624094,0.16842,2971.3,2970.2,0.79171986]
[1766724624293,8.291,2970.8,2970.2,0.79171986]
[1766724625395,0.16842,2971.3,2970.2,0.79171986]
[1766724625603,8.289,2970.9,2970.2,0.79171986]
[1766724626400,8.291,2970.8,2970.2,0.79171986]
[1766724627599,40.96842,2971.3,2970.2,0.79171986]
[1766724627804,8.3,2971.2,2970.2,0.79171986]
[1766724630906,40.96842,2971.3,2970.2,0.79171986]
[1766724631104,8.325,2971.2,2970.2,0.79171986]
[1766724632707,8.336,2971.1,2970.2,0.79171986]
[1766724634609,8.336,2971.1,2970.1,0.00905919]
[1766724640216,0.16842,2971.3,2970.1,0.00905919]
[1766724640512,3.494,2971.2,2970.1,0.00905919]
[1766724641313,8.396,2971.1,2970.3,0.79171986]
[1766724642106,8.396,2971.1,2970.1,0.00905919]
[1766724642305,8.396,2971.1,2970.2,0.79171986]
[1766724645322,0.16842,2971.3,2970.2,0.79171986]
[1766724645519,8.421,2971.0,2970.2,0.79171986]
[1766724648919,0.16842,2971.3,2970.2,0.79171986]
[1766724649118,8.423,2971.2,2970.2,0.79171986]
[1766724651917,8.42,2971.1,2970.2,0.79171986]
[1766724653414,8.419,2971.0,2970.2,0.79171986]
[1766724654816,0.16842,2971.3,2970.2,0.79171986]
[1766724655125,5.223,2971.2,2970.2,0.79171986]
[1766724657229,0.16842,2971.3,2970.2,0.79171986]
[1766724657523,8.414,2971.2,2970.2,0.79171986]
[1766724659021,0.16842,2971.3,2970.2,0.79171986]
[1766724659220,6.37,2971.2,2970.2,0.79171986]
[1766724659526,0.16842,2971.3,2970.2,0.79171986]
[1766724659724,8.412,2971.2,2970.2,0.79171986]
[1766724660720,8.41,2971.1,2970.2,0.79171986]
[1766724661421,0.0050517,2971.7,2970.8,0.79171986]
[1766724661627,8.41,2971.6,2970.8,0.79171986]
[1766724661829,8.4150517,2971.7,2971.1,0.79171986]
[1766724662024,8.4150517,2971.7,2970.8,0.79171986]
[1766724662220,8.4150517,2971.7,2970.2,0.96019986]
[1766724662824,8.4150517,2971.7,2970.5,0.79171986]
[1766724664727,8.4150517,2971.7,2970.2,0.96019986]
[1766724664931,8.4150517,2971.7,2970.6,0.79171986]
[1766724665428,8.4150517,2971.7,2970.2,0.16848]
[1766724665628,8.4150517,2971.7,2970.4,0.79171986]
[1766724665926,8.428,2971.6,2970.7,0.79171986]
[1766724666828,0.0050517,2971.7,2970.6,0.79171986]
[1766724667030,8.43,2971.6,2970.6,0.79171986]
[1766724667226,5.15,2971.5,2970.6,0.79171986]
[1766724668830,0.0050517,2971.7,2970.6,0.79171986]
[1766724669034,8.426,2971.5,2970.6,0.79171986]
[1766724669823,8.424,2971.6,2970.6,0.79171986]
[1766724671931,8.424,2971.6,2970.2,0.96019698]
[1766724673229,0.0050517,2971.7,2970.6,0.79171698]
[1766724674829,0.0050517,2971.7,2970.2,0.96019698]
[1766724675736,0.0050517,2971.7,2970.6,0.79171698]
[1766724676827,0.0050517,2971.7,2970.4,0.79171698]
[1766724679834,0.0050517,2971.7,2970.2,0.16848]
[1766724686242,8.4000517,2971.7,2970.2,0.16848]
[1766724686835,0.0050517,2971.7,2970.2,0.16848]
[1766724687037,8.3980517,2971.7,2970.2,0.16848]
[1766724687942,0.0050517,2971.7,2970.2,0.16848]
[1766724688143,8.3970517,2971.7,2970.2,0.16848]
[1766724689237,49.1970517,2971.7,2970.2,0.16848]
[1766724692147,40.8050517,2971.7,2970.2,0.16848]
[1766724692350,8.409,2971.6,2970.2,0.16848]
[1766724693343,40.8050517,2971.7,2970.2,0.16848]
[1766724693547,8.417,2971.6,2970.2,0.16848]
[1766724694153,0.0050517,2971.7,2970.2,0.96019698]
[1766724694342,8.419,2971.6,2970.2,0.96019698]
[1766724694743,8.4230517,2971.7,2970.2,0.96019698]
[1766724701367,0.0050517,2971.7,2970.2,0.96019698]
[1766724708477,0.0050517,2971.7,2970.2,0.16848]
[1766724718080,0.0050517,2971.7,2970.4,0.79171698]
[1766724723794,0.16836,2972.5,2971.2,0.79171698]
[1766724723987,0.9285027,2972.4,2971.2,0.79171698]
[1766724724188,0.16836,2972.5,2970.8,0.79171698]
[1766724724787,0.0050517,2971.9,2970.8,0.79171698]
[1766724725194,0.0050517,2971.9,2970.7,0.79171698]
[1766724726390,0.0050517,2971.9,2970.1,0.80077617]
[1766724728291,0.0050517,2971.9,2970.5,0.79171698]
[1766724728497,0.00371193,2972.5,2971.3,0.79171698]
[1766724728792,0.00371193,2972.5,2970.9,0.79171698]
[1766724729494,0.0050517,2972.0,2971.4,0.0050517]
[1766724731700,0.00371193,2972.5,2971.4,0.0050517]
[1766724732593,0.0050517,2972.2,2971.4,0.0050517]
[1766724732799,0.00371193,2972.5,2971.4,0.0050517]
[1766724733794,0.0050517,2972.2,2971.4,0.0050517]
[1766724733991,0.0050517,2972.2,2971.4,0.79638621]
[1766724734598,0.0050517,2972.2,2971.4,0.0050517]
[1766724742010,0.0050517,2972.2,2971.4,0.79638621]
[1766724744306,0.0050517,2972.2,2971.4,0.0050517]
[1766724747201,0.95971451,2972.1,2970.3,0.79133451]
[1766724748197,0.95971451,2972.1,2970.9,0.0050517]
[1766724748597,40.8,2972.0,2970.9,0.0050517]
[1766724751306,8.325,2971.9,2970.9,0.0050517]
[1766724754107,40.8,2971.8,2970.9,0.0050517]
[1766724758106,8.374,2971.7,2970.9,0.0050517]
[1766724760111,40.8,2971.8,2970.9,0.0050517]
[1766724760408,8.39,2971.7,2970.9,0.0050517]
[1766724760908,0.16838,2972.0,2970.9,0.0050517]
[1766724761114,8.394,2971.6,2970.9,0.0050517]
[1766724761312,0.79133451,2971.3,2970.1,0.00400749]
[1766724762213,0.79133451,2971.3,2970.4,0.0050517]
[1766724763114,8.394,2971.2,2970.4,0.0050517]
[1766724769521,8.394,2971.2,2970.1,0.00400749]
[1766724770419,8.394,2971.2,2970.4,0.0050517]
[1766724773021,8.394,2971.2,2970.1,0.00400749]
[1766724774017,8.394,2971.2,2970.4,0.0050517]
[1766724775519,8.394,2971.2,2970.1,0.00400749]
[1766724775724,9.18533451,2971.2,2970.1,0.00400749]
[1766724779524,9.35376451,2971.2,2970.1,0.00400749]
[1766724785729,8.56243,2971.2,2970.1,0.00400749]
[1766724787023,1.81016335,2972.1,2970.1,0.00400749]
[1766724787024,8.387,2971.7,2971.0,0.79133451]
[1766724787722,8.387,2971.6,2971.0,0.79133451]
[1766724787932,0.17207193,2972.5,2970.1,0.17249749]
[1766724787933,0.16836,2972.4,2971.3,0.79133451]
[1766724788238,8.386,2972.1,2971.6,0.79133451]
[1766724788936,0.16836,2972.4,2971.6,0.79133451]
[1766724789334,8.385,2972.3,2971.5,0.79133451]
[1766724789732,8.385,2972.3,2971.0,0.79133451]
[1766724789938,8.385,2972.3,2971.5,0.79133451]
[1766724790838,8.385,2972.3,2970.5,0.16847]
[1766724791139,8.385,2972.3,2971.2,0.79133451]
[1766724791344,8.385,2972.3,2970.9,0.79133451]
[1766724792339,8.385,2972.3,2970.5,0.16847]
[1766724792340,8.385,2972.3,2971.2,0.79133451]
[1766724793940,8.385,2972.3,2970.8,0.7914449]
[1766724796641,8.55337,2972.3,2970.4,0.7914449]
[1766724799244,0.1734217,2972.2,2970.4,0.7914449]
[1766724802954,0.1734217,2972.2,2970.9,0.7914449]
[1766724803156,8.478,2972.1,2970.9,0.7914449]
[1766724808860,0.0050517,2972.2,2970.9,0.7914449]
[1766724812464,0.00371193,2972.5,2971.3,0.7914449]
[1766724812662,0.16831,2973.3,2971.7,0.7914449]
[1766724812862,9.38613379,2973.2,2971.7,0.7914449]
[1766724813064,0.16835,2972.7,2970.6,0.9599049]
[1766724813361,42.51360174,2972.6,2970.1,0.79545239]
[1766724813665,0.0050517,2971.9,2970.1,0.79545239]
[1766724814551,0.0050517,2971.9,2970.5,0.7914449]
[1766724814959,0.0034985,2972.6,2970.9,0.7914449]
[1766724815965,0.0050517,2972.0,2971.5,0.0050517]
[1766724832475,8.577,2972.3,2971.5,0.0050517]
[1766724833583,0.0050517,2972.2,2971.5,0.0050517]
[1766724846093,0.0050517,2972.2,2970.5,0.16847]
[1766724846288,0.92535358,2972.1,2970.5,0.16847]
[1766724846489,0.16838,2972.1,2970.1,0.79545239]
[1766724846890,0.16838,2972.1,2970.1,2.44161904]
[1766724847193,0.16838,2972.1,2970.8,0.0050517]
[1766724850903,8.658,2972.0,2970.8,0.0050517]
[1766724851199,0.16838,2972.1,2970.8,0.7964966]
[1766724851404,8.82538,2972.1,2970.8,0.7964966]
[1766724851990,0.16838,2972.1,2970.8,0.7964966]
[1766724852398,0.0050517,2972.2,2971.1,0.7914449]
[1766724854603,0.0034985,2972.6,2971.5,0.7914449]
[1766724855710,0.0050517,2972.3,2971.5,0.7914449]
[1766724855900,0.0034985,2972.6,2972.0,0.79106088]
[1766724857010,0.0085502,2972.6,2972.0,0.79106088]
[1766724864432,0.0085502,2972.6,2971.8,0.79106088]
[1766724869943,0.16832,2973.1,2972.1,0.79106088]
[1766724870245,0.05855574,2973.4,2972.4,0.79106088]
[1766724870538,8.7953,2973.5,2972.4,0.79106088]
[1766724870740,0.92152614,2973.4,2972.4,0.79106088]
[1766724870936,0.0050517,2973.2,2972.6,0.0050517]
[1766724875536,0.0050517,2973.2,2972.7,0.79106088]
[1766724877048,0.00290635,2973.4,2972.7,0.79106088]
[1766724877533,0.00290635,2973.4,2972.6,0.0050517]
[1766724877534,0.00290635,2973.4,2973.0,0.79106088]
[1766724877736,8.629,2973.7,2973.0,0.79106088]
[1766724877942,0.0050517,2973.6,2973.0,0.79106088]
[1766724878648,0.0090569,2973.6,2973.0,0.79106088]
[1766724879148,0.0090569,2973.6,2972.7,0.79106088]
[1766724881950,0.16827,2974.0,2973.0,0.79106088]
[1766724882945,0.00334757,2973.8,2973.0,0.79106088]
[1766724883147,0.00334757,2973.8,2972.8,0.79106088]
[1766724886552,0.00334757,2973.8,2972.6,0.0050517]
[1766724886747,0.00334757,2973.8,2972.6,0.79611258]
[1766724888852,0.00334757,2973.8,2972.9,0.79106088]
[1766724889754,0.00334757,2973.8,2972.6,0.79611258]
[1766724893944,0.17162757,2973.8,2972.6,0.79611258]
[1766724900658,0.16829,2973.7,2972.6,0.79611258]
[1766724905150,0.16829,2973.7,2972.6,0.0050517]
[1766724905350,8.786,2973.6,2972.6,0.0050517]
[1766724906056,8.95429,2973.6,2972.6,0.0050517]
[1766724910450,9.74535088,2973.6,2972.6,0.0050517]
[1766724910658,0.1683,2973.4,2972.6,0.0050517]
[1766724910861,0.1683,2973.4,2972.4,0.00238455]
[1766724911751,0.1683,2973.4,2972.6,0.0050517]
[1766724913461,0.16832,2973.1,2972.4,0.00238455]
[1766724913754,8.844,2973.0,2971.7,0.79106088]
[1766724914647,0.16832,2973.1,2972.3,0.79106088]
[1766724914854,8.846,2973.0,2972.3,0.79106088]
[1766724916061,8.846,2973.0,2972.1,0.0050517]
[1766724919062,0.16832,2973.1,2972.1,0.0050517]
[1766724919264,8.863,2973.0,2972.1,0.0050517]
[1766724920768,8.867,2973.0,2972.1,0.0050517]
[1766724921164,0.16829,2973.7,2972.2,0.79090981]
[1766724924467,9.05329,2973.7,2972.2,0.79090981]
[1766724927477,0.1683,2973.5,2972.1,0.0050517]
[1766724928675,0.1683,2973.5,2972.2,0.79090981]
[1766724929175,8.919,2973.4,2972.2,0.79090981]
[1766724929767,0.1683,2973.5,2972.2,0.79090981]
[1766724930873,0.1683,2973.5,2972.1,0.0050517]
[1766724931976,9.1053,2973.5,2972.1,0.0050517]
[1766724935277,9.1283,2973.5,2972.1,0.0050517]
[1766724949487,0.16831,2973.3,2972.1,0.0050517]
[1766724949693,0.16832,2973.1,2972.1,0.0050517]
[1766724949898,9.055,2973.0,2972.1,0.0050517]
[1766724950698,0.16832,2973.1,2972.1,0.0050517]
[1766724950899,9.053,2972.9,2972.1,0.0050517]
[1766724951102,9.053,2972.9,2971.7,0.00257464]
[1766724951702,9.22133,2972.9,2971.7,0.00257464]
[1766724952303,0.16834,2972.8,2971.7,0.00257464]
[1766724953194,9.053,2972.7,2972.0,0.0050517]
[1766724953405,9.22034,2972.8,2972.0,0.0050517]
[1766724953901,0.16834,2972.8,2972.0,0.0050517]
[1766724958801,0.16834,2972.8,2971.7,0.00257464]
[1766724960018,0.16836,2972.4,2970.7,6.376]
[1766724960203,9.045,2972.3,2970.5,0.16847]
[1766724960409,0.16836,2972.4,2971.2,0.79090981]
[1766724960609,0.16833,2973.0,2971.2,0.79090981]
[1766724960810,0.92191531,2972.9,2971.2,0.79090981]
[1766724961012,0.0050517,2972.3,2971.6,0.79090981]
[1766724961214,9.20933,2973.0,2971.6,0.79449571]
[1766724961408,9.20933,2973.0,2971.6,0.0035859]
[1766724962115,0.0050517,2972.6,2972.0,0.0050517]
[1766724963121,0.0050517,2972.6,2971.6,0.0035859]
[1766724968115,0.0050517,2972.6,2971.6,0.79449571]
[1766724969127,0.0050517,2972.6,2971.6,0.0035859]
[1766724973332,0.1683,2973.5,2971.6,0.0035859]
[1766724973525,0.92188031,2973.4,2971.9,0.79090981]
[1766724973724,0.92188031,2973.3,2971.9,0.79090981]
[1766724973920,0.1683,2973.5,2971.9,0.79090981]
[1766724974225,0.92183472,2973.4,2971.9,0.79090981]
[1766724974428,0.0050517,2972.9,2972.4,0.0050517]
[1766724982242,0.0050517,2972.9,2972.0,0.79094856]
[1766724982741,0.0050517,2972.9,2971.6,0.0035859]
[1766724982942,0.0050517,2972.9,2972.0,0.79094856]
[1766724988456,9.029,2973.5,2972.6,0.79094856]
[1766724988457,9.061,2973.5,2972.6,0.79094856]
[1766724988751,0.16828,2973.8,2972.6,0.79094856]
[1766724988954,9.98798932,2973.7,2972.6,0.79094856]
[1766724989152,0.92698932,2973.6,2972.6,0.79094856]
[1766724989341,0.92698932,2973.6,2972.8,0.0050517]
[1766724989547,0.0050517,2973.4,2972.8,0.0050517]
[1766724990054,0.25,3580.0,2972.8,0.0050517]
[1766724990055,0.25395811,2974.3,2972.9,0.79094856]
[1766724990354,9.066,2973.8,2972.9,0.79094856]
[1766724991156,0.0050517,2973.6,2972.9,0.79094856]
[1766724995159,0.0050517,2973.6,2972.8,0.0050517]
[1766725000464,0.79094856,2973.0,2971.3,0.79094856]
[1766725000670,0.16832,2973.2,2972.3,0.79094856]
[1766725000861,9.135,2973.1,2972.3,0.79094856]
[1766725001668,9.135,2973.1,2972.4,0.0050517]
[1766725002759,0.0050517,2973.6,2972.4,0.0050517]
[1766725002960,9.134,2973.3,2972.4,0.0050517]
[1766725005268,9.133,2973.3,2972.4,0.0050517]
[1766725005668,0.0050517,2973.6,2972.4,0.0050517]
[1766725005870,9.133,2973.3,2972.4,0.0050517]
[1766725006173,9.134,2973.3,2972.4,0.0050517]
[1766725006872,0.0050517,2973.6,2972.4,0.0050517]
[1766725007070,10.05935604,2973.5,2972.4,0.0050517]
[1766725007272,9.133,2973.5,2972.4,0.0050517]
[1766725007574,0.1733517,2973.6,2971.4,1.4895987]
[1766725007774,10.06240649,2973.5,2972.0,0.79094856]
[1766725007975,9.136,2973.5,2972.0,0.79094856]
[1766725008679,9.136,2973.5,2972.5,1.0]
[1766725009874,9.14,2973.4,2972.5,1.0]
[1766725011575,0.79094856,2973.3,2972.5,0.3007]
[1766725011774,0.79094856,2973.3,2972.5,0.1009]
[1766725015680,9.14,2973.4,2972.5,0.1009]
[1766725018883,9.14,2973.4,2971.8,0.79094856]
[1766725020285,0.79094856,2973.3,2971.8,0.79094856]
[1766725021285,0.79094856,2973.3,2971.7,0.79094856]
[1766725026385,9.30831,2973.4,2972.0,0.79094856]
[1766725026583,0.93793268,2973.3,2972.0,0.79094856]
[1766725026890,1.10627771,2973.2,2971.7,0.79094856]
[1766725027086,0.93795771,2973.1,2971.7,0.79094856]
[1766725029186,0.93795771,2973.1,2971.2,6.376]
[1766725029187,0.79094856,2973.0,2971.5,0.79094856]
[1766725029390,1.10680584,2972.9,2971.5,0.79094856]
[1766725029589,0.79094856,2972.7,2970.1,0.16849]
[1766725029782,0.79600026,2971.7,2970.2,0.79094856]
[1766725029977,2.3650517,2971.7,2970.5,0.79094856]
[1766725030189,0.0050517,2971.7,2970.8,0.79094856]
[1766725030578,0.16838,2972.1,2971.1,0.79094856]
[1766725031076,9.138,2972.3,2971.1,0.79094856]
[1766725031482,40.8,2972.5,2971.1,0.79094856]
[1766725031693,0.0050517,2972.1,2971.5,0.0050517]
[1766725032690,0.0050517,2972.1,2971.0,0.79094856]
[1766725034095,9.1610517,2972.1,2971.0,0.79094856]
[1766725039994,9.1610517,2972.1,2970.8,0.00426138]
[1766725044497,9.3294317,2972.1,2970.8,0.00426138]
[1766725058294,0.94008508,2972.0,2970.8,0.00426138]
[1766725058497,9.3294317,2972.1,2970.8,0.00426138]
[1766725058702,0.94008507,2972.0,2970.8,0.00426138]
[1766725059003,9.3294317,2972.1,2970.8,0.00426138]
[1766725059207,0.94008507,2972.0,2970.8,0.00426138]
[1766725059410,0.94008507,2971.9,2970.8,0.00426138]
[1766725059610,9.3294317,2972.1,2970.8,0.00426138]
[1766725059802,0.94072597,2972.0,2970.8,0.00426138]
[1766725060002,0.94072597,2971.9,2970.8,0.00426138]
[1766725060208,9.3294317,2972.1,2970.8,0.00426138]
[1766725060407,0.94077661,2972.0,2970.8,0.00426138]
[1766725060612,0.94077661,2971.9,2970.8,0.00426138]
[1766725060911,9.3294317,2972.1,2970.8,0.00426138]
[1766725061107,0.94077663,2972.0,2970.8,0.00426138]
[1766725061310,0.94077663,2971.9,2970.8,0.00426138]
[1766725061612,9.3294317,2972.1,2970.8,0.00426138]
[1766725061809,0.94069738,2972.0,2970.8,0.00426138]
[1766725062109,0.94069738,2971.9,2970.8,0.00426138]
[1766725062313,9.3294317,2972.1,2970.8,0.00426138]
[1766725062511,0.9406181,2972.0,2970.8,0.00426138]
[1766725062813,0.9406181,2971.9,2970.8,0.00426138]
[1766725063008,9.3294317,2972.1,2970.8,0.00426138]
[1766725063305,0.9406181,2972.0,2970.8,0.00426138]
[1766725063500,0.9406181,2971.9,2970.8,0.00426138]
[1766725063706,0.16838,2972.0,2970.8,0.00426138]
[1766725063911,0.94055216,2971.9,2970.8,0.00426138]
[1766725064110,0.16838,2972.0,2970.8,0.00426138]
[1766725064411,0.94055072,2971.9,2970.8,0.00426138]
[1766725064606,0.16838,2972.0,2970.8,0.00426138]
[1766725064806,0.94049999,2971.9,2970.8,0.00426138]
[1766725065008,0.16838,2972.0,2970.8,0.00426138]
[1766725065216,0.94050055,2971.9,2970.8,0.00426138]
[1766725065506,0.16838,2972.0,2970.8,0.00426138]
[1766725065698,0.94046174,2971.9,2970.8,0.00426138]
[1766725065902,0.16838,2972.0,2970.8,0.00426138]
[1766725066104,0.94046174,2971.9,2970.8,0.00426138]
[1766725066305,0.16838,2972.0,2970.8,0.00426138]
[1766725066511,0.94043579,2971.9,2970.8,0.00426138]
[1766725066706,0.16838,2972.0,2970.8,0.00426138]
[1766725066912,0.94043579,2971.9,2970.8,0.00426138]
[1766725067105,0.16838,2972.0,2970.8,0.00426138]
[1766725067305,0.94044363,2971.9,2970.8,0.00426138]
[1766725067507,0.16838,2972.0,2970.8,0.00426138]
[1766725067707,0.94042126,2971.9,2970.8,0.00426138]
[1766725067908,0.16838,2972.0,2970.8,0.00426138]
[1766725068108,0.94042169,2971.9,2970.8,0.00426138]
[1766725068310,0.16838,2972.0,2970.8,0.00426138]
[1766725068511,0.94040974,2971.9,2970.8,0.00426138]
[1766725068712,0.16838,2972.0,2970.8,0.00426138]
[1766725068913,0.9404093,2971.9,2970.8,0.00426138]
[1766725069122,0.16838,2972.0,2970.8,0.00426138]
[1766725069321,0.94040973,2971.9,2970.8,0.00426138]
[1766725069521,0.16838,2972.0,2970.8,0.00426138]
[1766725069822,0.94040784,2971.9,2970.8,0.00426138]
[1766725070013,0.94041569,2971.8,2970.8,0.00426138]
[1766725070216,0.16838,2972.0,2970.8,0.00426138]
[1766725070422,0.94039684,2971.9,2970.8,0.00426138]
[1766725070621,0.94039684,2971.8,2970.8,0.00426138]
[1766725070824,0.16839,2971.9,2969.9,2.39540706]
[1766725071015,0.94043068,2971.8,2969.9,2.39540706]
[1766725071215,0.16839,2971.9,2969.9,2.39540706]
[1766725071216,0.94043068,2971.7,2969.9,2.39540706]
[1766725071416,0.16839,2971.8,2969.9,2.39540706]
[1766725071624,0.94031145,2971.7,2969.9,2.39540706]
[1766725071825,0.16839,2971.8,2969.9,2.3984701]
[1766725072027,0.94031144,2971.7,2969.9,2.3984701]
[1766725072226,0.16839,2971.8,2970.3,0.79160881]
[1766725072525,2.888,2971.7,2970.3,0.79160881]
[1766725073131,0.16839,2971.8,2970.3,0.79160881]
[1766725073332,9.42839,2971.8,2970.3,0.79160881]